Cogmind - Beta 17.1 @@@ ROGUE MODE // 2026.08.30 @ 18:35:04 Player: most_lamentable Result: Self-destructed Performance ------------- Evolutions (2) 1000 Regions Visited (7) 1400 Robots Destroyed (22) 110 Value Destroyed (465) 465 Prototype IDs (23) 460 Alien Tech Used (0) 0 Bonus (613) 613 TOTAL SCORE: 4048 Bonus ------- Follower Combat Kills 313 Aligned with FarCom 300 Cogmind --------- Core Integrity 454/550 Matter 235/300 Energy 88/100 System Corruption 10% Temperature Cool (20) Movement Core (350) Ox6 Location -8/Materials Parts ------- > --- POWER (1) -------- (None) > --- PROPULSION (2) --- (None) > --- UTILITY (6) ------ Heat Sink Heat Sink Heat Sink Small Storage Unit Targeting Computer Improved Targeting Computer > --- WEAPON (2) ------- Particle Gun Latent Energy Streamer > --- INVENTORY (8) ---- High-capacity Matter Pod (200) Signal Interpreter Particle Cannon Heavy Assault Rifle Rocket Launcher Peak State ------------ > --- POWER ------------ Improved Ion Engine > --- PROPULSION ------- Armored Wheel > --- UTILITY ---------- Heat Sink Heat Sink Heat Sink Small Storage Unit Targeting Computer Improved Targeting Computer > --- WEAPON ----------- Particle Gun Latent Energy Streamer > --- INVENTORY -------- Light Deuterium Engine High-capacity Matter Pod Signal Interpreter Particle Cannon Heavy Assault Rifle Rocket Launcher [Rating: 24] Favorites ----------- Power Ion Engine Engine Ion Engine Propulsion Armored Wheel Treads Light Treads Wheel Armored Wheel Utility Small Storage Unit Device Heat Sink Storage Small Storage Unit Processor Targeting Computer Protection Light Armor Plating Weapon EM Pulse Gun Energy Gun EM Pulse Gun Energy Cannon Latent Energy Streamer Ballistic Gun Heavy Assault Rifle Launcher Rocket Launcher Build | -11 -10 -10 -9 -9 -9 -8 -8 ------- Run | Yrd Mat Min Mat Min Exi Min Mat Slots Evolved 4 | . . . 2 . . . 2 Power . | . . . . . . . . Propulsion . | . . . . . . . . Utility 4 | . . . 2 . . . 2 Weapon . | . . . . . . . . Parts Attached 26 | 7 3 . 8 3 . 2 3 Power 5 | 2 . . 1 . . 1 1 Engine 5 | 2 . . 1 . . 1 1 Core . | . . . . . . . . Reactor . | . . . . . . . . Propulsion 7 | 2 2 . 2 1 . . . Treads 2 | . 2 . . . . . . Leg . | . . . . . . . . Wheel 5 | 2 . . 2 1 . . . Hover . | . . . . . . . . Flight . | . . . . . . . . Utility 8 | 1 1 . 2 2 . . 2 Device 4 | . 1 . 1 . . . 2 Storage 1 | 1 . . . . . . . Processor 2 | . . . . 2 . . . Hackware . | . . . . . . . . Protection 1 | . . . 1 . . . . Artifact . | . . . . . . . . Weapon 6 | 2 . . 3 . . 1 . Energy Gun 3 | 2 . . 1 . . . . Energy Cannon 1 | . . . . . . 1 . Ballistic Gun 1 | . . . 1 . . . . Ballistic Cannon . | . . . . . . . . Launcher 1 | . . . 1 . . . . Special Weapon . | . . . . . . . . Impact Weapon . | . . . . . . . . Slashing Weapon . | . . . . . . . . Piercing Weapon . | . . . . . . . . Special Melee Weapon . | . . . . . . . . Unidentified Prototypes . | . . . . . . . . Parts Lost 8 | . . . . 3 . 2 3 Power 3 | . . . . . . 1 2 Propulsion 3 | . . . . 1 . 1 1 Utility 2 | . . . . 2 . . . Weapon . | . . . . . . . . Highest Loss Streak 2 | . . . . 2 . 2 2 To Critical Strikes . | . . . . . . . . Average Backups 6 | 3 6 7 7 7 6 6 5 Power . | . 1 1 1 1 1 . . Propulsion 1 | 1 4 3 2 . . . . Utility 2 | . . 1 2 4 4 4 2 Weapon 1 | 1 1 1 1 1 1 2 2 Tool/Special . | . . . . . . . . Unused Backups 6 | . . 2 1 . . . 3 Power . | . . . . . . . . Propulsion 2 | . . 2 . . . . . Utility 2 | . . . . . . . 2 Weapon 2 | . . . 1 . . . 1 Tool/Special . | . . . . . . . . Average Slot Usage (%) 95 | . 97 100 96 91 100 93 81 Engine 11 | . 14 14 11 11 11 10 7 Treads 1 | . 16 . . . . . . Wheel 19 | . 11 27 22 22 22 16 5 Device 14 | . 11 14 21 11 11 11 22 Storage 11 | . 14 14 11 11 11 11 9 Processor 9 | . . . . 6 22 22 18 Protection 2 | . . . 11 6 . . . Energy Gun 16 | . 28 28 13 11 11 11 9 Energy Cannon 1 | . . . . . . 6 9 Ballistic Gun 4 | . . . 4 7 11 4 . Peak Build Rating 24 | 6 7 7 14 14 15 23 24 Average Rating 12 | 4 6 7 12 13 14 18 22 On Entrance 10 | . 6 7 7 14 14 15 21 Avg Prop Armor Cover (%) . | . . . . . . . . Naked Turns . | . . . . . . . . Heaviest Build 28 | 14 15 15 22 21 17 26 28 Greatest Support 40 | 32 40 32 32 24 24 24 12 Greatest Overweight (x) 8 | . . . . 1 . 2 8 Average Overweight (x) . | . . . . . . . 2 Largest Inventory Capacity 8 | 8 8 8 8 8 8 8 8 Average Capacity 7 | 7 8 8 8 8 8 8 8 Most Carried 8 | 6 7 8 8 8 7 7 6 Average Carried 6 | 3 6 7 7 7 6 6 5 Final Capacity 8 | 8 8 8 8 8 8 8 8 Final Carried 8 | 6 7 8 8 6 7 6 5 Class Distribution -------------------- 96% | Mutant 3% | Scavenger-Mutant Dominant Class ---------------- Mutant | -10/Materials Mutant | -10/Mines Mutant | -9/Materials Mutant | -9/Mines Mutant | -9/Exiles Mutant | -8/Mines Mutant | -8/Materials Resources | -11 -10 -10 -9 -9 -9 -8 -8 ----------- Run | Yrd Mat Min Mat Min Exi Min Mat Matter Collected 597 | 217 123 20 96 114 . 10 17 Remotely . | . . . . . . . . Salvage Created 616 | . 145 . 74 44 . 55 298 Parts 37 | . 4 . 6 1 . 2 24 Haulers Intercepted 1 | . . . . . . . 1 Recyclers Shooed . | . . . . . . . . Parts Field Recycled . | . . . . . . . . Retrieved Matter . | . . . . . . . . Parts Self-Destructed . | . . . . . . . . Prevented . | . . . . . . . . Parts Restored . | . . . . . . . . Kills | -11 -10 -10 -9 -9 -9 -8 -8 ------- Run | Yrd Mat Min Mat Min Exi Min Mat Combat Hostiles Destroyed 14 | . 3 . 1 1 . 1 8 Guns 5 | . 2 . 1 1 . 1 . AOE 8 | . . . . . . . 8 Classes Destroyed 9 | . 1 . 2 . . 1 5 Worker 1 | . . . . . . . 1 Builder 1 | . . . . . . . 1 Hauler 1 | . . . . . . . 1 Recycler 1 | . . . . . . . 1 Operator 2 | . . . 1 . . . 1 Watcher 2 | . . . 1 . . . 1 Swarmer 8 | . . . . . . . 8 Grunt 5 | . 3 . 1 1 . . . Hunter 1 | . . . . . . 1 . Best Kill Streak 8 | . 1 . 1 1 . 1 8 Combat Bots Only 4 | . 1 . 1 1 . 1 4 Max Kills in Single Turn 5 | . 1 . 1 1 . 1 5 Gunslinging . | . . . . . . . . Exploded 4 | . . . . . . . 4 Melee . | . . . . . . . . Uniques/NPCs Destroyed . | . . . . . . . . Combat | -11 -10 -10 -9 -9 -9 -8 -8 -------- Run | Yrd Mat Min Mat Min Exi Min Mat Hostile Shots Fired 109 | . 29 . 12 22 . 10 36 Missed 32 | . 7 . 4 8 . 3 10 Hits 77 | . 22 . 8 14 . 7 26 Projectile 77 | . 22 . 8 14 . 7 26 AOE 12 | . . . . 11 . 1 . Damage Taken 1283 | . 274 . 98 507 . 83 321 Core 188 | . 36 . 12 44 . . 96 Absorbed by Shields . | . . . . . . . . Core Remaining (%) 90 | 100 . 85 . . . 86 . Volleys Fired 54 | . 11 . 10 19 . 2 12 Largest 2 | . 2 . 2 2 . 1 1 Hottest 105 | . 80 . 105 88 . 65 65 Shots Fired 83 | . 22 . 20 27 . 2 12 Gun 72 | . 22 . 20 24 . 1 5 Cannon 5 | . . . . . . 1 4 Launcher 6 | . . . . 3 . . 3 Special . | . . . . . . . . Kinetic 14 | . . . 6 8 . . . Thermal 30 | . . . 8 16 . 1 5 Explosive 6 | . . . . 3 . . 3 Electromagnetic 33 | . 22 . 6 . . 1 4 Robot Hit Streak 8 | . 8 . 5 8 . 6 7 Robot Miss Streak 4 | . 1 . 4 3 . . 1 Penetration Max . | . . . . . . . . Secondary Targets . | . . . . . . . . Shots Hit Robots 58 | . 17 . 13 19 . 2 7 Core Hits 36 | . 3 . 4 8 . 3 18 Critical Kills . | . . . . . . . . Critical Parts Destroyed . | . . . . . . . . Critical Strikes 2 | . . . . . . 1 1 Burn 2 | . . . . . . 1 1 Melee Attacks . | . . . . . . . . Impact . | . . . . . . . . Slashing . | . . . . . . . . Piercing . | . . . . . . . . Sneak Attacks . | . . . . . . . . Combat Hostiles . | . . . . . . . . Follow-up Attacks . | . . . . . . . . Damage Inflicted 2201 | . 233 . 198 340 . 88 1342 Guns 812 | . 233 . 198 304 . 18 59 Cannons 10 | . . . . . . 5 5 Explosions 1379 | . . . . 36 . 65 1278 Melee . | . . . . . . . . Ramming . | . . . . . . . . Kinetic 153 | . . . 56 97 . . . Thermal 430 | . . . 72 219 . 18 121 Explosive 334 | . . . . 24 . . 310 Electromagnetic 1284 | . 233 . 70 . . 70 911 Impact . | . . . . . . . . Slashing . | . . . . . . . . Piercing . | . . . . . . . . Highest Corruption 10 | . . . . . . 2 10 Average Corruption 4 | . . . . . . 2 6 Corruption Purged . | . . . . . . . . Corruption Blocked . | . . . . . . . . Effects 8 | . . . . . . 3 5 Message Errors 1 | . . . . . . 1 . Matter Fused 2 | . . . . . . . 2 Heat Flow Errors 2 | . . . . . . . 2 Energy Discharges 2 | . . . . . . 2 . Data Loss (minor) 1 | . . . . . . . 1 Overload Shots . | . . . . . . . . Overflow Damage 14 | . . . . . . . 14 Projectiles . | . . . . . . . . Explosions 14 | . . . . . . . 14 Melee . | . . . . . . . . Knockbacks . | . . . . . . . . Impact . | . . . . . . . . Kinetic . | . . . . . . . . Secondary . | . . . . . . . . Self-Inflicted Damage 52 | . . . . . . . 52 Shots 2 | . . . . . . . 2 Rammed . | . . . . . . . . Targets Rammed . | . . . . . . . . Kicked . | . . . . . . . . Crushed . | . . . . . . . . Highest Temperature 103 | . 84 . 15 14 . 10 103 Average Temperature 23 | . 37 . 9 6 . 8 59 Received Heat Transfer 246 | . 156 . 45 33 . 12 . Siege Activations . | . . . . . . . . Martial Activations . | . . . . . . . . Shielding Activations . | . . . . . . . . Robots Disrupted . | . . . . . . . . Combat Hostiles . | . . . . . . . . Robots Corrupted 1 | . 1 . . . . . . Combat Hostiles 1 | . 1 . . . . . . Parts Fried 6 | . 2 . . . . 1 3 Impact Corruptions . | . . . . . . . . Robots Melted . | . . . . . . . . Combat Hostiles . | . . . . . . . . Parts Melted 2 | . . . 1 . . 1 . Heat Transferred 1236 | . . . 185 568 . 111 372 Parts Sabotaged . | . . . . . . . . Parts Stolen . | . . . . . . . . Parts Stripped . | . . . . . . . . Power Chain Reactions 2 | . . . . . . . 2 Latent Energy Used 698 | . . . . . . 115 583 LE Corruption 12 | . . . . . . 2 10 Alert | -11 -10 -10 -9 -9 -9 -8 -8 ------- Run | Yrd Mat Min Mat Min Exi Min Mat Maximum Alert Level 1 | . . . . . . . 1 Low Security (%) 96 | 100 100 100 100 100 . 100 61 Level 1 3 | . . . . . . . 38 Level 2 . | . . . . . . . . Level 3 . | . . . . . . . . Level 4 . | . . . . . . . . Level 5 . | . . . . . . . . High Security . | . . . . . . . . Max Security . | . . . . . . . . Peak Influence 284 | . 55 17 176 114 . 30 284 Initial 64 | . . 17 . 64 . . . Average 45 | . 23 1 68 73 . 5 185 Influence Increases 918 | . 93 . 329 108 . 34 354 Destroy 0b10 Robot/C 500 | . 60 . 200 60 . 20 160 Destroy 0b10 Robot/NC 40 | . . . 10 . . . 30 Destroy Leader 106 | . 10 . 52 10 . 10 24 Allied During Kill 40 | . . . 36 4 . . . Successful Hack 24 | . 8 . 16 . . . . Disable Machine 90 | . . . 15 15 . . 60 Destroy Structure 103 | . . . . 19 . 4 80 Lose Combat Pursuer 15 | . 15 . . . . . . Influence Decreases 664 | . 48 45 163 242 32 34 100 Entered New Map 162 | . . 28 . 102 32 . . Time Decay 382 | . 48 17 143 70 . 34 70 Lost Part 60 | . . . . 30 . . 30 Lost Ally 60 | . . . 20 40 . . . Squads Dispatched 2 | . 1 . 1 . . . . Investigation 1 | . 1 . . . . . . Extermination . | . . . . . . . . Reinforcement 1 | . . . 1 . . . . Assault . | . . . . . . . . Garrison . | . . . . . . . . Intercept . | . . . . . . . . Searches Triggered . | . . . . . . . . Construction Impeded . | . . . . . . . . Haulers Reinforced . | . . . . . . . . Active Scanning Responses . | . . . . . . . . Cargo Convoy Interrupts . | . . . . . . . . Stealth | -11 -10 -10 -9 -9 -9 -8 -8 --------- Run | Yrd Mat Min Mat Min Exi Min Mat Distress Signals 1 | . . . 1 . . . . Communications Jammed . | . . . . . . . . Distress Signals . | . . . . . . . . Times Spotted 38 | . 6 . 10 9 . 2 11 Peak Tracking Total 6 | . 3 . 3 5 . 1 6 Tactical Retreats 1 | . 1 . . . . . . Traps | -11 -10 -10 -9 -9 -9 -8 -8 ------- Run | Yrd Mat Min Mat Min Exi Min Mat Traps Triggered 1 | . 1 . . . . . . Indirectly . | . . . . . . . . Trap Hack Attempts . | . . . . . . . . Triggered . | . . . . . . . . Disarmed . | . . . . . . . . Reprogrammed . | . . . . . . . . Reused . | . . . . . . . . Traps Extracted . | . . . . . . . . Installed . | . . . . . . . . Triggered . | . . . . . . . . Machines | -11 -10 -10 -9 -9 -9 -8 -8 ---------- Run | Yrd Mat Min Mat Min Exi Min Mat Machines Disabled 6 | . . . 1 1 . . 4 Max in Single Turn 3 | . . . 1 1 . . 3 Machines Repaired . | . . . . . . . . Machines Dismantled . | . . . . . . . . Machines Sabotaged . | . . . . . . . . Overloaded Fab Kills . | . . . . . . . . Hacking | -11 -10 -10 -9 -9 -9 -8 -8 --------- Run | Yrd Mat Min Mat Min Exi Min Mat Machines Accessed 8 | . 2 . 3 1 2 . . Terminals 5 | . 2 . 2 1 . . . Fabricators . | . . . . . . . . Repair Stations . | . . . . . . . . Recycling Units . | . . . . . . . . Scanalyzers 1 | . . . 1 . . . . Garrison Access . | . . . . . . . . Total Hacks 18 | . 3 . 7 3 5 . . Successful 11 | . 1 . 5 . 5 . . Failed 7 | . 2 . 2 3 . . . Catastrophic 2 | . 1 . . 1 . . . Database Lockouts . | . . . . . . . . Manual 9 | . 3 . 5 . 1 . . Terminals 11 | . 3 . 5 3 . . . Fabricators . | . . . . . . . . Repair Stations . | . . . . . . . . Recycling Units . | . . . . . . . . Scanalyzers 2 | . . . 2 . . . . Garrison Access . | . . . . . . . . Terminal Hacks 8 | . 1 . 2 . 5 . . Record 4 | . . . . . 4 . . Branch Access Points 2 | . 1 . 1 . . . . Emergency Access Points 1 | . . . 1 . . . . Proto ID Catalog 1 | . . . . . 1 . . Fabricator Hacks . | . . . . . . . . Repair Station Hacks . | . . . . . . . . Recycling Unit Hacks . | . . . . . . . . Scanalyzer 2 | . . . 2 . . . . Retrieve Study 2 | . . . 2 . . . . Garrison Access Hacks . | . . . . . . . . Unauthorized Hacks 1 | . . . 1 . . . . Terminals 1 | . . . 1 . . . . Assimilate 1 | . . . 1 . . . . Fabricators . | . . . . . . . . Repair Stations . | . . . . . . . . Recycling Units . | . . . . . . . . Scanalyzers . | . . . . . . . . Garrison Access . | . . . . . . . . Data Cores Recovered 2 | . . . 1 . . . 1 Used . | . . . . . . . . Hacking Detections 3 | . 1 . 1 1 . . . Full Trace Events . | . . . . . . . . Feedback Events . | . . . . . . . . Feedback Blocked . | . . . . . . . . Robot Schematics Acquired . | . . . . . . . . Robots Built . | . . . . . . . . Authchips . | . . . . . . . . Time . | . . . . . . . . Total Robot Build Rating . | . . . . . . . . Part Schematics Acquired . | . . . . . . . . Parts Built . | . . . . . . . . Authchips . | . . . . . . . . Time . | . . . . . . . . Total Part Build Rating . | . . . . . . . . Part Studies Acquired 2 | . . . 2 . . . . Parts Repaired . | . . . . . . . . Time . | . . . . . . . . Parts Recycled . | . . . . . . . . Recycled Matter . | . . . . . . . . Retrieved Matter . | . . . . . . . . Retrieved Components . | . . . . . . . . Parts Scanalyzed . | . . . . . . . . Part Schematics Acquired . | . . . . . . . . Parts Damaged . | . . . . . . . . Bothacking | -11 -10 -10 -9 -9 -9 -8 -8 ------------ Run | Yrd Mat Min Mat Min Exi Min Mat Used RIF Installer . | . . . . . . . . Robots Hacked . | . . . . . . . . Non-combat . | . . . . . . . . Combat . | . . . . . . . . Robot Hacks Applied . | . . . . . . . . Relay Couplers Released . | . . . . . . . . Fabnet Peak Effective % . | . . . . . . . . Robots Rewired . | . . . . . . . . Allies Hacked . | . . . . . . . . Hacks Repelled . | . . . . . . . . Allies | -11 -10 -10 -9 -9 -9 -8 -8 -------- Run | Yrd Mat Min Mat Min Exi Min Mat Total Allies 3 | . . 3 . . . . . Largest Group 3 | . . 3 3 2 . . . Highest-Rated Group 40 | . . 40 40 32 . . . Highest-Rated Ally 16 | . . 16 16 16 . . . Total Orders . | . . . . . . . . Ally Attacks 55 | . . . 44 11 . . . Total Damage 618 | . . . 456 162 . . . Kills 11 | . . . 9 2 . . . Allies Corrupted . | . . . . . . . . Allies Melted . | . . . . . . . . Intel | -11 -10 -10 -9 -9 -9 -8 -8 ------- Run | Yrd Mat Min Mat Min Exi Min Mat Active Infowar (turns) 867 | . 162 376 325 4 . . . Sensors 867 | . 162 376 325 4 . . . Robot Analysis Total . | . . . . . . . . Derelict Logs Recovered . | . . . . . . . . Drone Launches . | . . . . . . . . Drone Recoveries . | . . . . . . . . Exploration | -11 -10 -10 -9 -9 -9 -8 -8 ------------- Run | Yrd Mat Min Mat Min Exi Min Mat Turns Passed 1802 | 64 178 376 325 155 331 223 150 Spaces Moved 1567 | 47 82 369 253 106 413 223 74 Core 8 | 3 . . . . . . 5 Treads 25 | . 25 . . . . . . Legs . | . . . . . . . . Wheels 1534 | 44 57 369 253 106 413 223 69 Hover . | . . . . . . . . Flight . | . . . . . . . . Fastest Speed 50 | 50 100 100 80 80 80 80 110 Average Speed 92 | 96 118 100 88 80 80 92 132 Slowest Speed 450 | 100 160 100 100 95 80 110 450 Overloaded Moves . | . . . . . . . . Propulsion Burnouts . | . . . . . . . . Robots Hopped . | . . . . . . . . Potential Cave-ins . | . . . . . . . . Cave-ins Triggered . | . . . . . . . . Exploration Rate (%) 34 | 3 20 68 27 26 79 39 17 Regions Visited 7 Branch Regions 4 Pre-discovered Areas 1 | . . . . . 1 . . Known Exits Taken 2 | . 1 . 1 . . . . Unknown Exits Taken 5 | 1 . 1 . 1 1 1 . Scrap Searched 2 | . . 1 . 1 . . . Spaces Dug . | . . . . . . . . Terrain Destroyed 126 | . . . . 29 . 10 87 Melee . | . . . . . . . . Projectile . | . . . . . . . . AOE 126 | . . . . 29 . 10 87 Terrain Rammed . | . . . . . . . . Walls Destroyed . | . . . . . . . . Machines Disabled . | . . . . . . . . Actions | -11 -10 -10 -9 -9 -9 -8 -8 --------- Run | Yrd Mat Min Mat Min Exi Min Mat Total 1821 | 65 138 375 335 147 413 236 112 Wait 126 | . 37 . 47 13 . 10 19 Move 1560 | 46 81 368 252 105 412 222 74 Hop . | . . . . . . . . Pick Up 29 | 12 2 3 8 1 1 . 2 Fast Attach 1 | . . . 1 . . . . Attach 17 | 6 1 . 3 3 . 1 3 Detach . | . . . . . . . . Swap 20 | 1 6 2 5 3 . 1 2 Drop 11 | . . 2 9 . . . . Fire 54 | . 11 . 10 19 . 2 12 Melee . | . . . . . . . . Ram . | . . . . . . . . Kick . | . . . . . . . . Crush . | . . . . . . . . Escape Stasis . | . . . . . . . . Rewire 3 | . . . . 3 . . . Trap . | . . . . . . . . Miscellaneous . | . . . . . . . . Route ------- -11/Scrapyard -10/Materials (discovered 2 exits: *Min x2) -10/Mines -9/Materials (discovered 3 exits: [*Mat] / *Min x2) -9/Mines -9/Exiles -8/Mines -8/Materials History --------- Turn | Location | Event 16 | -11/Scrapyard | Discovered new exit (range 16) 65 | -11/Scrapyard | Entered Materials 95 | -10/Materials | Identified exit to Mines 243 | -10/Materials | Entered Mines 304 | -10/Mines | Build established: Mutant 370 | -10/Mines | Assisted by bots powering up and referring to "LRC-V3" 599 | -10/Mines | Discovered new exit (range 13) 606 | -10/Mines | Received a Rocket Launcher from a helpful Derelict 619 | -10/Mines | Entered Materials 619 | -9/Materials | Accompanied by 3 allies 619 | -9/Materials | Evolved 2 slots: Utility x2 630 | -9/Materials | Identified exit to Mines 820 | -9/Materials | Discovered new exit (range 8) 944 | -9/Materials | Entered Mines 944 | -9/Mines | Accompanied by 2 allies 991 | -9/Mines | Assembled infested the area 1033 | -9/Mines | Met 8R-AWN 1095 | -9/Mines | Discovered new exit (range 5) 1099 | -9/Mines | Entered Exiles 1120 | -9/Exiles | Welcomed by 8R-AWN 1133 | -9/Exiles | Met EX-HEX 1155 | -9/Exiles | Met EX-BIN 1169 | -9/Exiles | Aligned with FarCom system 1170 | -9/Exiles | Given EX-Vault access code 1198 | -9/Exiles | Opened EX-Vault 1207 | -9/Exiles | Found Latent Energy Streamer 1223 | -9/Exiles | Warned to stay clear of 0b10 Research branches 1245 | -9/Exiles | Met EX-DEC 1259 | -9/Exiles | Learned location of Zion (-6) 1351 | -9/Exiles | Visited The Gauntlet 1420 | -9/Exiles | Discovered new exit (range 14) 1430 | -9/Exiles | Left Exiles lab with Latent Energy Streamer 1430 | -9/Exiles | Entered Mines 1617 | -8/Mines | Discovered new exit (range 10) 1653 | -8/Mines | Entered Materials 1653 | -8/Materials | Evolved 2 slots: Utility x2 1748 | -8/Materials | System corruption reached 10% 1803 | -8/Materials | Self-destructed Last Messages --------------- 01790_ K-01 Serf collects debris. 01791_ U-05 Engineer lays Concrete. 01791_ U-05 Engineer builds a Wall. 01792_ U-05 Engineer lays Concrete. 01792_ Penetrated by Slug. 01793_ H-55 Commando suffers critical hit (Burn). 01793_ U-05 Engineer builds a Wall. 01794_ U-05 Engineer lays Concrete. 01794_ R-06 Scavenger collects Lgt. Ion Engine. 01795_ U-05 Engineer lays Concrete. 01797_ R-06 Scavenger collects Lgt. Assault Rifle. 01798_ U-05 Engineer lays Concrete. 01798_ Penetrated by Slug. 01798_ Lgt. Deuterium Engine destroyed. 01798_ U-05 Engineer lays Concrete. 01800_ System corrupted: Heat flow error (+107). 01800_ U-05 Engineer lays Concrete. 01802_ R-06 Scavenger collects Welding Torch. Map ----- +----------------------------------------------------+ | ?????????????????????????????????????????????????? | | ?????????????????????????????????????????????????? | | ?????????????????????????????????????????????????? | | ?????????????????????????????????????????????????? | | ?????????????????????????????????????????????????? | | ?????????????????????????????????????????????????? | | ?????????????????????????????????????????????????? | | ?????????????????????????????????????????????????? | | ?????????????????????????????????????????????????? | | ?????????????????????????????????????????????????? | | ??????????????????????? ????????????????????????? | | ????????????????????? ????????????????????????? | | ??????????????????? ???? ???????????????????? | | ???????????????????#r #??? ???????????????????? | | ?????????????? ?? ??? #??????????????????? | | ?????????????? !!] r % ??? ??????????????????? | | ???????????????!!] #?? #??????????????????? | | ????????????????] ?? #??????????????????? | | ????????????????? !# u # ?? #??????????????????? | | ?????????????? ?? ### #?????????Y????????? | | ?????????? #####/### t ;/#?????##?##????????? | | ?????????? k #### ??????? | | ????????? # /h ??????? | | ????????????? =% ;### ??????? | | ???????????????????# uk%; ##?? #???????????? | | ???????????????????# @ *%; #? #???????????? | | ???????????????????# % ; ## #???????????? | | ???????????????????# ##+##;## #???????????? | | ???????????????????# # #???????????? | | ???????????????????# ## / ^ #????? | | ???????????????????# ??# ; #^ ###### | | ?????????????????? / ???##; "#######????]?? # | | ????????????????? # ????## ##????????????? # | | ????????????????" # ????# #?????????????? # | | ??????????????? ?# #### ############### # | | ???????????????##??# # # | | ???????????????????# # # | | ???????????????????# " # | | ???????????????????#########/########"""" " # | | ???????????????????????# # " " + | | ???????????????????????# """ # = " ""### | | ???????????????????????# """""# " ""## [ | | ???????????????????????# """""# " | | ???????????????????????# """""# "Y " ! | | ???????????????????????# """ # """ # | | ???????????????????????# ############### | | ???????????????????????# #??????????????? | | ???????????????????????###########???????????????? | | ?????????????????????????????????????????????????? | | ?????????????????????????????????????????????????? | +----------------------------------------------------+ Best States ------------- Heat Dissipation 61 Energy Generation 14 Energy Capacity 265 Matter Stores 300 Matter Capacity 300 Sight Range 16 Robot Scan Range 14 Terrain Scan Density 10 Armor Coverage 150 Evasion (%) 44 Targeting Accuracy 11 Recoil Reduction 2 Item Schematics ----------------- None Robot Schematics ------------------ None Fabricated ------------ Nothing Repaired ---------- Nothing Studied --------- Arm. Wheel | -9/Materials | Hacked Ion Engine | -9/Materials | Hacked Alien Tech Used ----------------- None Achievements -------------- None Challenges ------------ None Game ------ Seed OvertunedSubdwellerPlatform Manual? 0 Play Time 00:33:55 Cumulative 44.2 hours Start 2026.08.27 @ 23:33:50 End 2026.08.30 @ 18:35:04 Sessions 3 Manual Loads 0 Difficulty Rogue Special Mode None Game No. 51 Rogue 51 Adventurer 0 Explorer 0 Win Type - Total 0 Types 0/0/0/0/0/0/0/0/0/0 Lore% 29 Gallery% 28 Achievement% 27 Wizard Run 0 Options --------- Layout 1 ASCII 0 Keyboard 0 Movement Mouse Keybinds 0 Fullscreen 0 Font 20/SmallcapsGlow Map View 50x40 Zoom Use 0% Tactical HUD 1 Map Filters NONE Filters NONE Steam 1 RUN: 7a0466b7-df59-4a32-93e3-5a2786488dad